fUSD/lending_fUSD_20240501
["ID","MTS","AMOUNT","RATE_DAILY","PERIOD"]
[325153972,1714542642447,-502.54342124,0.00010958,2]
[325153974,1714542642456,-500.0,0.00010958,2]
[325153976,1714542642465,-500.0,0.00010958,2]
[325153978,1714542642474,-500.0,0.00010958,2]
[325153980,1714542642483,-500.0,0.00010958,2]
[325153982,1714542642492,-500.0,0.00010958,2]
[325153984,1714542642501,-500.0,0.00010958,2]
[325153986,1714542642510,-500.0,0.00010958,2]
[325153988,1714542642519,-500.0,0.00010958,2]
[325153990,1714542642528,-500.0,0.00010958,2]
[325153992,1714542642538,-500.0,0.00010958,2]
[325153994,1714542642547,-500.0,0.00010958,2]
[325153996,1714542642555,-500.0,0.00010958,2]
[325153998,1714542642564,-500.0,0.00010958,2]
[325154000,1714542642573,-500.0,0.00010958,2]
[325154002,1714542642582,-500.0,0.00010958,2]
[325154004,1714542642591,-500.0,0.00010958,2]
[325154006,1714542642600,-500.0,0.00010958,2]
[325154008,1714542642610,-500.0,0.00010958,2]
[325154010,1714542642619,-494.53049589,0.00010958,2]
[325154012,1714542642628,-500.0,0.00010958,2]
[325154014,1714542642638,-500.0,0.00010958,2]
[325154016,1714542642647,-500.0,0.00010958,2]
[325154018,1714542642656,-500.0,0.00010958,2]
[325154020,1714542642665,-502.65639107,0.00010958,2]
[325154022,1714542642676,-500.0,0.00010958,2]
[325154024,1714542642685,-501.76888872,0.00010958,2]
[325154026,1714542642694,-198.56501933,0.00010958,2]
[325154028,1714542642703,-500.0,0.00010958,2]
[325154030,1714542642712,-500.0,0.00010958,2]
[325154032,1714542642721,-500.0,0.00010958,2]
[325154034,1714542642730,-500.0,0.00010958,2]
[325154036,1714542642740,-501.23098862,0.00010958,2]
[325154038,1714542642749,-500.0,0.00010958,2]
[325154040,1714542642758,-500.0,0.00010958,2]
[325154042,1714542642768,-337.1,0.00010958,2]
[325154044,1714542642778,-515.86117058,0.00010958,2]
[325154046,1714542642788,-500.0,0.00010958,2]
[325154048,1714542642798,-500.0,0.00010958,2]
[325154050,1714542642808,-500.0,0.00010958,2]
[325154052,1714542642817,-170.1423554,0.00010958,2]
[325154054,1714542642826,-500.0,0.00010958,2]
[325154056,1714542642836,-500.0,0.00010958,2]
[325154079,1714542643032,-500.0,0.00010958,2]
[325154082,1714542643042,-500.0,0.00010958,2]
[325154084,1714542643052,-500.0,0.00010958,2]
[325154086,1714542643061,-500.0,0.00010958,2]
[325154088,1714542643071,-500.0,0.00010958,2]
[325154090,1714542643079,-500.0,0.00010958,2]
[325154092,1714542643088,-495.92975125,0.00010958,2]
[325154094,1714542643097,-500.0,0.00010958,2]
[325154096,1714542643106,-500.0,0.00010958,2]
[325154098,1714542643115,-500.0,0.00010958,2]
[325154101,1714542643124,-504.16510528,0.00010958,2]
[325154103,1714542643133,-546.25,0.00010958,2]
[325154106,1714542643143,-500.0,0.00010958,2]
[325154108,1714542643152,-503.66155791,0.00010958,2]
[325154110,1714542643161,-510.08009001,0.00010958,2]
[325154112,1714542643170,-500.0,0.00010958,2]
[325154114,1714542643179,-500.0,0.00010958,2]
[325154116,1714542643188,-500.0,0.00010958,2]
[325154118,1714542643198,-500.0,0.00010958,2]
[325154120,1714542643211,-607.60183176,0.00010958,2]
[325154122,1714542643220,-500.0,0.00010958,2]
[325154123,1714542643229,-500.0,0.00010958,2]
[325154125,1714542643239,-500.0,0.00010958,2]
[325154128,1714542643250,-500.0,0.00010958,2]
[325154130,1714542643258,-500.0,0.00010958,2]
[325154132,1714542643267,-500.0,0.00010958,2]
[325154134,1714542643277,-500.0,0.00010958,2]
[325154136,1714542643288,-500.0,0.00010958,2]
[325154138,1714542643298,-500.0,0.00010958,2]
[325154140,1714542643307,-500.0,0.00010958,2]
[325154142,1714542643316,-509.76919057,0.00010958,2]
[325154144,1714542643325,-506.08335446,0.00010958,2]
[325154146,1714542643334,-516.04654642,0.00010958,2]
[325154148,1714542643343,-500.0,0.00010958,2]
[325154150,1714542643352,-500.0,0.00010958,2]
[325154152,1714542643361,-704.22,0.00010958,2]
[325154154,1714542643371,-500.0,0.00010958,2]
[325154156,1714542643381,-320.0674549,0.00010958,2]
[325154158,1714542643390,-505.91127337,0.00010958,2]
[325154160,1714542643399,-230.72234418,0.00010958,2]
[325154162,1714542643408,-500.0,0.00010958,2]
[325154164,1714542643418,-500.0,0.00010958,2]
[325154166,1714542643428,-500.0,0.00010958,2]
[325154168,1714542643437,-508.00889572,0.00010958,2]
[325154170,1714542643446,-500.0,0.00010958,2]
[325154172,1714542643456,-500.0,0.00010958,2]
[325154174,1714542643466,-500.0,0.00010958,2]
[325154176,1714542643475,-500.0,0.00010958,2]
[325154178,1714542643484,-500.20940491,0.00010958,2]
[325154180,1714542643493,-500.0,0.00010958,2]
[325154182,1714542643502,-500.0,0.00010958,2]
[325154184,1714542643511,-500.0,0.00010958,2]
[325154186,1714542643520,-500.0,0.00010958,2]
[325154188,1714542643529,-500.0,0.00010958,2]
[325154190,1714542643538,-1776.56,0.00010958,2]
[325154192,1714542643547,-500.0,0.00010958,2]
[325154194,1714542643556,-500.0,0.00010958,2]
[325154196,1714542643566,-500.0,0.00010958,2]
[325154198,1714542643575,-500.0,0.00010958,2]
[325154200,1714542643585,-500.0,0.00010958,2]
[325154202,1714542643594,-500.0,0.00010958,2]
[325154204,1714542643604,-500.0,0.00010958,2]
[325154206,1714542643613,-500.0,0.00010958,2]
[325154208,1714542643622,-500.0,0.00010958,2]
[325154210,1714542643631,-500.0,0.00010958,2]
[325154212,1714542643641,-500.0,0.00010958,2]
[325154214,1714542643650,-500.0,0.00010958,2]
[325154216,1714542643659,-500.0,0.00010958,2]
[325154218,1714542643668,-500.0,0.00010958,2]
[325154220,1714542643678,-500.0,0.00010958,2]
[325154222,1714542643687,-500.0,0.00010958,2]
[325154224,1714542643696,-500.0,0.00010958,2]
[325154226,1714542643706,-500.0,0.00010958,2]
[325154228,1714542643715,-500.0,0.00010958,2]
[325154230,1714542643724,-686.3,0.00010958,2]
[325154232,1714542643733,-500.0,0.00010958,2]
[325154234,1714542643742,-500.0,0.00010958,2]
[325154236,1714542643752,-500.0,0.00010958,2]
[325154238,1714542643761,-500.0,0.00010958,2]
[325154240,1714542643770,-2002.25391074,0.00010958,2]
[325154242,1714542643779,-627.17021964,0.00010958,2]
[325154244,1714542643788,-500.0,0.00010958,2]
[325154246,1714542643797,-549.2724137,0.00010958,2]
[325154248,1714542643806,-626.52,0.00010958,2]
[325154250,1714542643816,-346.8367503,0.00010958,2]
[325154252,1714542643825,-500.0,0.00010958,2]
[325154254,1714542643835,-398.86776078,0.00010958,2]
[325154256,1714542643844,-1184.92,0.00010958,2]
[325154258,1714542643853,-500.0,0.00010958,2]
[325154260,1714542643863,-500.0,0.00010958,2]
[325154262,1714542643874,-500.0,0.00010958,2]
[325154264,1714542643889,-500.0,0.00010958,2]
[325154266,1714542643909,-500.0,0.00010958,2]
[325154268,1714542643918,-500.0,0.00010958,2]
[325154270,1714542643931,-699.23,0.00010958,2]
[325154273,1714542643939,-500.0,0.00010958,2]
[325154275,1714542643948,-500.0,0.00010958,2]
[325154276,1714542643958,-500.0,0.00010958,2]
[325154277,1714542643966,-500.0,0.00010958,2]
[325154278,1714542643975,-500.0,0.00010958,2]
[325154279,1714542643985,-500.0,0.00010958,2]
[325154280,1714542643994,-500.0,0.00010958,2]
[325154281,1714542644003,-509.1089073,0.00010958,2]
[325154282,1714542644012,-500.0,0.00010958,2]
[325154283,1714542644021,-500.0,0.00010958,2]
[325154284,1714542644030,-347.84173794,0.00010958,2]
[325154285,1714542644039,-7170.82,0.00010958,2]
[325154287,1714542644048,-500.0,0.00010958,2]
[325154289,1714542644057,-589.48,0.00010958,2]
[325154291,1714542644066,-500.0,0.00010958,2]
[325154293,1714542644075,-643.14,0.00010958,2]
[325154295,1714542644084,-625.52,0.00010958,2]
[325154297,1714542644093,-500.0,0.00010958,2]
[325154299,1714542644102,-809.92,0.00010958,2]
[325154301,1714542644111,-500.0,0.00010958,2]
[325154303,1714542644120,-500.0,0.00010958,2]
[325154305,1714542644129,-500.0,0.00010958,2]
[325154307,1714542644138,-500.0,0.00010958,2]
[325154309,1714542644147,-500.0,0.00010958,2]
[325154311,1714542644156,-500.0,0.00010958,2]
[325154313,1714542644166,-500.0,0.00010958,2]
[325154315,1714542644177,-697.39,0.00010958,2]
[325154317,1714542644186,-500.0,0.00010958,2]
[325154319,1714542644196,-1650.0,0.00010958,2]
[325154321,1714542644206,-7789.17,0.00010958,2]
[325154323,1714542644216,-500.0,0.00010958,2]
[325154325,1714542644227,-500.0,0.00010958,2]
[325154327,1714542644236,-500.0,0.00010958,2]
[325154329,1714542644246,-500.0,0.00010958,2]
[325154331,1714542644255,-167.47831291,0.00010958,2]
[325154333,1714542644265,-500.0,0.00010958,2]
[325154335,1714542644275,-500.0,0.00010958,2]
[325154337,1714542644284,-3346.94,0.00010958,2]
[325154339,1714542644295,-500.0,0.00010958,2]
[325154341,1714542644306,-724.59,0.00010958,2]
[325154343,1714542644316,-500.0,0.00010958,2]
[325154345,1714542644326,-500.0,0.00010958,2]
[325154347,1714542644335,-500.0,0.00010958,2]
[325154349,1714542644344,-585.15,0.00010958,2]
[325154351,1714542644354,-549.53,0.00010958,2]
[325154353,1714542644362,-500.0,0.00010958,2]
[325154355,1714542644372,-500.0,0.00010958,2]
[325154357,1714542644381,-500.0,0.00010958,2]
[325154359,1714542644391,-500.0,0.00010958,2]
[325154361,1714542644401,-500.0,0.00010958,2]
[325154363,1714542644410,-711.11,0.00010958,2]
[325154365,1714542644419,-500.0,0.00010958,2]
[325154367,1714542644429,-581.18,0.00010958,2]
[325154369,1714542644438,-1021.06,0.00010958,2]
[325154371,1714542644447,-500.0,0.00010958,2]
[325154373,1714542644457,-500.0,0.00010958,2]
[325154375,1714542644467,-500.0,0.00010958,2]
[325154377,1714542644476,-591.98558581,0.00010958,2]
[325154379,1714542644485,-500.0,0.00010958,2]
[325154381,1714542644494,-1018.7,0.00010958,2]
[325154383,1714542644504,-500.0,0.00010958,2]
[325154385,1714542644513,-3038.17,0.00010958,2]
[325154387,1714542644522,-500.0,0.00010958,2]
[325154389,1714542644532,-500.0,0.00010958,2]
[325154391,1714542644541,-500.0,0.00010958,2]
[325154393,1714542644551,-150.0,0.00010958,2]
[325154395,1714542644560,-500.0,0.00010958,2]
[325154397,1714542644569,-500.0,0.00010958,2]
[325154399,1714542644578,-503.53533521,0.00010958,2]
[325154401,1714542644587,-500.0,0.00010958,2]
[325154403,1714542644596,-500.0,0.00010958,2]
[325154405,1714542644605,-591.4,0.00010958,2]
[325154407,1714542644614,-500.0,0.00010958,2]
[325154409,1714542644623,-500.0,0.00010958,2]
[325154411,1714542644633,-1962.87,0.00010958,2]
[325154413,1714542644642,-500.0,0.00010958,2]
[325154415,1714542644652,-206.06,0.00010958,2]
[325154417,1714542644661,-500.0,0.00010958,2]
[325154419,1714542644671,-1298.52,0.00010958,2]
[325154421,1714542644682,-500.0,0.00010958,2]
[325154423,1714542644691,-1337.7,0.00010958,2]
[325154425,1714542644700,-500.0,0.00010958,2]
[325154427,1714542644709,-500.0,0.00010958,2]
[325154429,1714542644718,-500.0,0.00010958,2]
[325154431,1714542644728,-518.87735146,0.00010958,2]
[325154433,1714542644738,-500.0,0.00010958,2]
[325154435,1714542644747,-500.0,0.00010958,2]
[325154437,1714542644756,-500.0,0.00010958,2]
[325154439,1714542644765,-500.0,0.00010958,2]
[325154441,1714542644774,-500.0,0.00010958,2]
[325154443,1714542644784,-500.0,0.00010958,2]
[325154445,1714542644792,-454.44781983,0.00010958,2]
[325154447,1714542644802,-500.0,0.00010958,2]
[325154449,1714542644811,-500.0,0.00010958,2]
[325154451,1714542644820,-500.0,0.00010958,2]
[325154453,1714542644829,-191.28,0.00010958,2]
[325154454,1714542644838,-500.0,0.00010958,2]
[325154457,1714542644847,-273.78447463,0.00010958,2]
[325154458,1714542644857,-500.0,0.00010958,2]
[325154460,1714542644866,-500.0,0.00010958,2]
[325154462,1714542644876,-1264.24,0.00010958,2]
[325154465,1714542644886,-1069.93,0.00010958,2]
[325154467,1714542644895,-500.0,0.00010958,2]
[325154468,1714542644904,-500.0,0.00010958,2]
[325154470,1714542644914,-582.27,0.00010958,2]
[325154472,1714542644923,-500.0,0.00010958,2]
[325154474,1714542644933,-500.0,0.00010958,2]
[325154476,1714542644942,-500.0,0.00010958,2]
[325154478,1714542644952,-500.0,0.00010958,2]
[325154480,1714542644961,-500.0,0.00010958,2]
[325154482,1714542644970,-500.0,0.00010958,2]
[325154484,1714542644979,-216.19,0.00010958,2]
[325154486,1714542644988,-500.0,0.00010958,2]
[325154488,1714542644997,-500.0,0.00010958,2]
[325154490,1714542645006,-511.68630656,0.00010958,2]
[325154492,1714542645016,-710.13,0.00010958,2]
[325154494,1714542645026,-500.0,0.00010958,2]
[325154496,1714542645035,-500.0,0.00010958,2]
[325154499,1714542645047,-500.0,0.00010958,2]
[325154501,1714542645056,-500.0,0.00010958,2]
[325154502,1714542645067,-500.0,0.00010958,2]
[325154505,1714542645077,-690.32,0.00010958,2]
[325154507,1714542645088,-503.61587401,0.00010958,2]
[325154508,1714542645098,-500.0,0.00010958,2]
[325154511,1714542645108,-500.0,0.00010958,2]
[325154512,1714542645118,-738.69,0.00010958,2]
[325154514,1714542645127,-500.0,0.00010958,2]
[325154516,1714542645136,-500.0,0.00010958,2]
[325154518,1714542645145,-500.0,0.00010958,2]
[325154521,1714542645155,-500.0,0.00010958,2]
[325154522,1714542645164,-500.0,0.00010958,2]
[325154525,1714542645176,-500.0,0.00010958,2]
[325154526,1714542645185,-500.0,0.00010958,2]
[325154528,1714542645195,-500.0,0.00010958,2]
[325154531,1714542645206,-500.0,0.00010958,2]
[325154532,1714542645215,-500.0,0.00010958,2]
[325154535,1714542645228,-500.0,0.00010958,2]
[325154537,1714542645237,-2161.38,0.00010958,2]
[325154539,1714542645247,-521.09708557,0.00010958,2]
[325154541,1714542645256,-500.0,0.00010958,2]
[325154543,1714542645266,-4905.9,0.00010958,2]
[325154545,1714542645275,-966.37,0.00010958,2]
[325154547,1714542645284,-500.0,0.00010958,2]
[325154549,1714542645294,-500.0,0.00010958,2]
[325154551,1714542645303,-1948.4,0.00010958,2]
[325154552,1714542645313,-759.28,0.00010958,2]
[325154554,1714542645323,-500.0,0.00010958,2]
[325154556,1714542645332,-500.0,0.00010958,2]
[325154558,1714542645342,-1275.71,0.00010958,2]
[325154560,1714542645351,-500.0,0.00010958,2]
[325154562,1714542645361,-500.0,0.00010958,2]
[325154564,1714542645370,-500.0,0.00010958,2]
[325154566,1714542645379,-500.0,0.00010958,2]
[325154568,1714542645388,-758.67,0.00010958,2]
[325154570,1714542645397,-500.0,0.00010958,2]
[325154572,1714542645407,-500.0,0.00010958,2]
[325154574,1714542645416,-646.21198811,0.00010958,2]
[325154576,1714542645429,-500.0,0.00010958,2]
[325154578,1714542645438,-886.96,0.00010958,2]
[325154580,1714542645447,-500.0,0.00010958,2]
[325154582,1714542645456,-500.0,0.00010958,2]
[325154584,1714542645465,-500.0,0.00010958,2]
[325154586,1714542645475,-2677.35,0.00010958,2]
[325154588,1714542645484,-500.0,0.00010958,2]
[325154590,1714542645493,-500.0,0.00010958,2]
[325154592,1714542645502,-502.7520936,0.00010958,2]
[325154594,1714542645511,-500.0,0.00010958,2]
[325154596,1714542645520,-500.0,0.00010958,2]
[325154598,1714542645529,-500.0,0.00010958,2]
[325154600,1714542645538,-500.0,0.00010958,2]
[325154602,1714542645547,-1235.88,0.00010958,2]
[325154604,1714542645556,-500.0,0.00010958,2]
[325154606,1714542645565,-866.09,0.00010958,2]
[325154608,1714542645576,-500.0,0.00010958,2]
[325154610,1714542645595,-500.0,0.00010958,2]
[325154612,1714542645616,-1072.35,0.00010958,2]
[325154614,1714542645636,-500.0,0.00010958,2]
[325154616,1714542645655,-537.69475485,0.00010958,2]
[325154618,1714542645678,-1288.28,0.00010958,2]
[325154620,1714542645696,-500.0,0.00010958,2]
[325154621,1714542645717,-500.0,0.00010958,2]
[325154623,1714542645738,-500.0,0.00010958,2]
[325154625,1714542645756,-500.0,0.00010958,2]
[325154627,1714542645765,-500.0,0.00010958,2]
[325154629,1714542645773,-500.0,0.00010958,2]
[325154631,1714542645782,-3316.24,0.00010958,2]
[325154633,1714542645791,-500.0,0.00010958,2]
[325154636,1714542645801,-1241.61,0.00010958,2]
[325154639,1714542645810,-500.0,0.00010958,2]
[325154642,1714542645819,-500.0,0.00010958,2]
[325154645,1714542645828,-500.0,0.00010958,2]
[325154648,1714542645837,-500.0,0.00010958,2]
[325154651,1714542645846,-500.0,0.00010958,2]
[325154654,1714542645855,-500.0,0.00010958,2]
[325154657,1714542645864,-500.0,0.00010958,2]
[325154660,1714542645873,-500.0,0.00010958,2]
[325154663,1714542645883,-524.67944591,0.00010958,2]
[325154665,1714542645894,-622.45,0.00010958,2]
[325154667,1714542645903,-500.0,0.00010958,2]
[325154668,1714542645912,-500.0,0.00010958,2]
[325154670,1714542645921,-502.45138285,0.00010958,2]
[325154672,1714542645935,-500.0,0.00010958,2]
[325154674,1714542645944,-2504.85,0.00010958,2]
[325154676,1714542645953,-500.0,0.00010958,2]
[325154678,1714542645962,-500.0,0.00010958,2]
[325154680,1714542645971,-500.0,0.00010958,2]
[325154682,1714542645980,-500.0,0.00010958,2]
[325154684,1714542645989,-500.0,0.00010958,2]
[325154686,1714542645998,-810.87,0.00010958,2]
[325154688,1714542646008,-500.0,0.00010958,2]
[325154690,1714542646018,-500.0,0.00010958,2]
[325154692,1714542646027,-500.0,0.00010958,2]
[325154694,1714542646036,-500.0,0.00010958,2]
[325154696,1714542646045,-500.0,0.00010958,2]
[325154698,1714542646054,-507.55,0.00010958,2]
[325154700,1714542646063,-870.27,0.00010958,2]
[325154702,1714542646072,-500.0,0.00010958,2]
[325154704,1714542646081,-500.0,0.00010958,2]
[325154706,1714542646090,-3432.19,0.00010958,2]
[325154708,1714542646100,-500.0,0.00010958,2]
[325154710,1714542646110,-500.0,0.00010958,2]
[325154712,1714542646119,-1019.03,0.00010958,2]
[325154714,1714542646128,-500.0,0.00010958,2]
[325154716,1714542646137,-500.0,0.00010958,2]
[325154717,1714542646146,-257.84,0.00010958,2]
[325154718,1714542646156,-935.9,0.00010958,2]
[325154719,1714542646165,-563.78,0.00010958,2]
[325154720,1714542646174,-2956.33,0.00010958,2]
[325154721,1714542646185,-484.19614376,0.00010958,2]
[325154722,1714542646196,-1026.81,0.00010958,2]
[325154723,1714542646207,-500.0,0.00010958,2]
[325154725,1714542646219,-3294.14,0.00010958,2]
[325154726,1714542646228,-500.0,0.00010958,2]
[325154728,1714542646238,-500.0,0.00010958,2]
[325154730,1714542646249,-500.0,0.00010958,2]
[325154732,1714542646258,-500.0,0.00010958,2]
[325154734,1714542646267,-500.0,0.00010958,2]
[325154736,1714542646277,-500.0,0.00010958,2]
[325154738,1714542646287,-515.39,0.00010958,2]
[325154739,1714542646297,-500.0,0.00010958,2]
[325154742,1714542646307,-1610.66,0.00010958,2]
[325154743,1714542646316,-324.31,0.00010958,2]
[325154745,1714542646325,-500.0,0.00010958,2]
[325154747,1714542646334,-500.0,0.00010958,2]
[325154749,1714542646344,-500.0,0.00010958,2]
[325154751,1714542646353,-500.0,0.00010958,2]
[325154753,1714542646362,-500.0,0.00010958,2]
[325154755,1714542646372,-1323.01,0.00010958,2]
[325154757,1714542646381,-6150.44,0.00010958,2]
[325154759,1714542646391,-1965.64,0.00010958,2]
[325154761,1714542646400,-500.0,0.00010958,2]
[325154763,1714542646409,-500.0,0.00010958,2]
[325154766,1714542646419,-500.0,0.00010958,2]
[325154767,1714542646430,-500.0,0.00010958,2]
[325154769,1714542646439,-500.0,0.00010958,2]
[325154771,1714542646448,-500.0,0.00010958,2]
[325154773,1714542646457,-500.34,0.00010958,2]
[325154775,1714542646466,-11884.42,0.00010958,2]
[325154777,1714542646475,-500.0,0.00010958,2]
[325154779,1714542646484,-500.0,0.00010958,2]
[325154782,1714542646494,-500.0,0.00010958,2]
[325154783,1714542646503,-1478.72,0.00010958,2]
[325154785,1714542646512,-500.0,0.00010958,2]
[325154788,1714542646521,-500.0,0.00010958,2]
[325154789,1714542646530,-152.34,0.00010958,2]
[325154792,1714542646540,-1095.18,0.00010958,2]
[325154793,1714542646548,-500.0,0.00010958,2]
[325154795,1714542646558,-500.0,0.00010958,2]
[325154797,1714542646567,-12067.93,0.00010958,2]
[325154799,1714542646576,-500.0,0.00010958,2]
[325154802,1714542646585,-500.0,0.00010958,2]
[325154804,1714542646595,-1361.3,0.00010958,2]
[325154806,1714542646604,-500.0,0.00010958,2]
[325154807,1714542646613,-500.0,0.00010958,2]
[325154808,1714542646623,-671.59,0.00010958,2]
[325154809,1714542646632,-500.0,0.00010958,2]
[325154810,1714542646641,-500.0,0.00010958,2]
[325154811,1714542646651,-803.19,0.00010958,2]
[325154812,1714542646660,-500.0,0.00010958,2]
[325154813,1714542646669,-510.64,0.00010958,2]
[325154814,1714542646683,-500.0,0.00010958,2]
[325154815,1714542646693,-500.0,0.00010958,2]
[325154817,1714542646702,-500.0,0.00010958,2]
[325154819,1714542646711,-1131.44,0.00010958,2]
[325154821,1714542646720,-5313.27,0.00010958,2]
[325154823,1714542646729,-500.0,0.00010958,2]
[325154825,1714542646738,-1967.48,0.00010958,2]
[325154827,1714542646747,-741.95,0.00010958,2]
[325154829,1714542646757,-500.0,0.00010958,2]
[325154830,1714542646765,-500.0,0.00010958,2]
[325154831,1714542646774,-500.0,0.00010958,2]
[325154832,1714542646783,-500.0,0.00010958,2]
[325154833,1714542646792,-500.0,0.00010958,2]
[325154834,1714542646801,-500.0,0.00010958,2]
[325154835,1714542646810,-500.0,0.00010958,2]
[325154836,1714542646819,-500.0,0.00010958,2]
[325154837,1714542646828,-500.0,0.00010958,2]
[325154838,1714542646837,-500.0,0.00010958,2]
[325154839,1714542646846,-500.0,0.00010958,2]
[325154840,1714542646855,-12501.05,0.00010958,2]
[325154841,1714542646865,-500.0,0.00010958,2]
[325154842,1714542646874,-500.0,0.00010958,2]
[325154843,1714542646883,-500.0,0.00010958,2]
[325154844,1714542646892,-250.0,0.00010959,2]
[325154845,1714542646901,-153.69,0.0001096,2]
[325154846,1714542646910,-500.0,0.00010999,2]
[325154847,1714542646919,-244.2584,0.00011,2]
[325154848,1714542646931,-247.76,0.00011062,2]
[325154849,1714542646940,-207.1941123,0.00011132,2]
[325154850,1714542646950,-1041.7727,0.00011132,2]
[325154852,1714542646959,-499.99,0.00011132,2]
[325154853,1714542646968,-151.50674154,0.0001122,2]
[325154854,1714542646977,-500.0,0.00011231,2]
[325154855,1714542646987,-500.0,0.00011231,2]
[325154856,1714542646996,-500.0,0.00011231,2]
[325154857,1714542647005,-500.0,0.00011232,2]
[325154858,1714542647015,-500.0,0.00011232,2]
[325154859,1714542647024,-500.0,0.00011232,2]
[325154860,1714542647033,-500.0,0.00011232,2]
[325154861,1714542647209,-230.1383395,0.00011232,2]
[325154862,1714542647221,-500.0,0.00011232,2]
[325154863,1714542647230,-500.0,0.00011232,2]
[325154864,1714542647240,-500.0,0.00011232,2]
[325154865,1714542647250,-500.0,0.00011232,2]
[325154866,1714542647259,-500.0,0.00011232,2]
[325154867,1714542647269,-500.0,0.00011232,2]
[325154868,1714542647279,-500.0,0.00011232,2]
[325154869,1714542647289,-500.0,0.00011232,2]
[325154870,1714542647298,-500.0,0.00011232,2]
[325154871,1714542647308,-500.0,0.00011232,2]
[325154872,1714542647317,-500.0,0.00011232,2]
[325154873,1714542647326,-500.0,0.00011232,2]
[325154874,1714542647336,-500.0,0.00011232,2]
[325154875,1714542647346,-519.41171679,0.00011232,2]
[325154876,1714542647355,-467.17212776,0.00011232,2]
[325154877,1714542647365,-205.85361961,0.00011232,2]
[325154878,1714542647375,-500.0,0.00011232,2]
[325154879,1714542647385,-500.0,0.00011232,2]
[325154880,1714542647395,-523.09312596,0.00011232,2]
[325154881,1714542647405,-500.0,0.00011232,2]
[325154882,1714542647415,-500.0,0.00011232,2]
[325154883,1714542647426,-385.90905144,0.00011232,2]
[325154884,1714542647435,-630.10970295,0.00011232,2]
[325154885,1714542647444,-500.0,0.00011232,2]
[325154886,1714542647453,-500.0,0.00011232,2]
[325154887,1714542647463,-500.0,0.00011232,2]
[325154888,1714542647472,-500.0,0.00011232,2]
[325154889,1714542647482,-343.27997086,0.00011232,2]
[325154890,1714542647491,-500.0,0.00011232,2]
[325154891,1714542647500,-500.0,0.00011232,2]
[325154892,1714542647510,-615.59153146,0.00011232,2]
[325154893,1714542647520,-500.0,0.00011232,2]
[325154894,1714542647529,-299.1954301,0.00011232,2]
[325154896,1714542647539,-500.0,0.00011232,2]
[325154897,1714542647548,-500.0,0.00011232,2]
[325154898,1714542647558,-500.0,0.00011232,2]
[325154899,1714542647567,-311.48216246,0.00011232,2]
[325154900,1714542647576,-500.0,0.00011232,2]
[325154901,1714542647586,-500.0,0.00011232,2]
[325154902,1714542647595,-500.0,0.00011232,2]
[325154903,1714542647605,-500.0,0.00011232,2]
[325154904,1714542647614,-500.0,0.00011232,2]